fUSD/lending_fUSD_20250211
["ID","MTS","AMOUNT","RATE_DAILY","PERIOD"]
[352700163,1739251845567,-381.7318424,0.00010997,2]
[352700164,1739251845577,-28906.02337152,0.00011,2]
[352700165,1739251845587,-208.0,0.0001105,2]
[352700166,1739251845599,-500.0,0.00011086,2]
[352700167,1739251845609,-500.0,0.00011087,2]
[352700168,1739251845619,-500.0,0.00011087,2]
[352700169,1739251845628,-500.0,0.00011087,2]
[352700170,1739251845637,-500.0,0.00011087,2]
[352700171,1739251845647,-500.0,0.00011087,2]
[352700172,1739251845657,-500.0,0.00011087,2]
[352700173,1739251845666,-904.24,0.00011087,2]
[352700174,1739251845675,-881.81,0.00011087,2]
[352700175,1739251845684,-1002.62,0.00011087,2]
[352700176,1739251845693,-698.43,0.00011087,2]
[352700177,1739251845702,-500.0,0.00011087,2]
[352700178,1739251845711,-1165.51,0.00011087,2]
[352700179,1739251845722,-500.0,0.00011087,2]
[352700180,1739251845731,-1222.48,0.00011087,2]
[352700181,1739251845741,-1298.14,0.00011087,2]
[352700182,1739251845750,-500.0,0.00011087,2]
[352700183,1739251845759,-500.0,0.00011087,2]
[352700184,1739251845768,-606.28,0.00011087,2]
[352700185,1739251845777,-500.0,0.00011087,2]
[352700186,1739251845787,-500.0,0.00011087,2]
[352700187,1739251845796,-500.0,0.00011087,2]
[352700188,1739251845805,-500.0,0.00011087,2]
[352700189,1739251845815,-500.0,0.00011094,2]
[352700190,1739251845825,-500.0,0.00011094,2]
[352700191,1739251845834,-500.0,0.00011094,2]
[352700192,1739251845845,-500.0,0.00011094,2]
[352700193,1739251845855,-500.0,0.00011094,2]
[352700194,1739251845865,-500.0,0.00011094,2]
[352700195,1739251845874,-500.0,0.00011094,2]
[352700196,1739251845884,-504.20199347,0.00011094,2]
[352700197,1739251845893,-500.0,0.00011094,2]
[352700198,1739251845903,-500.0,0.00011094,2]
[352700199,1739251845911,-500.0,0.00011094,2]
[352700200,1739251845920,-511.3571225,0.00011094,2]
[352700201,1739251845930,-500.0,0.00011094,2]
[352700203,1739251845939,-500.0,0.00011094,2]
[352700204,1739251845949,-504.83719128,0.00011094,2]
[352700205,1739251845959,-506.23468025,0.00011094,2]
[352700206,1739251845968,-618.65943981,0.00011094,2]
[352700207,1739251845977,-500.0,0.00011094,2]
[352700208,1739251845986,-506.56,0.00011094,2]
[352700209,1739251845996,-501.34265982,0.00011094,2]
[352700210,1739251846005,-507.11890795,0.00011094,2]
[352700211,1739251846015,-500.0,0.00011094,2]
[352700212,1739251846024,-500.0,0.00011094,2]
[352700213,1739251846034,-500.0,0.00011094,2]
[352700214,1739251846044,-500.0,0.00011094,2]
[352700215,1739251846055,-505.63642195,0.00011094,2]
[352700216,1739251846065,-501.86582334,0.00011094,2]
[352700217,1739251846074,-500.0,0.00011094,2]
[352700218,1739251846085,-508.08538795,0.00011094,2]
[352700219,1739251846094,-500.0,0.00011094,2]
[352700220,1739251846103,-503.55620002,0.00011094,2]
[352700221,1739251846112,-500.0,0.00011094,2]
[352700223,1739251846122,-500.0,0.00011094,2]
[352700225,1739251846134,-504.01092945,0.00011094,2]
[352700227,1739251846143,-565.44,0.00011094,2]
[352700229,1739251846152,-500.0,0.00011094,2]
[352700231,1739251846161,-500.0,0.00011094,2]
[352700233,1739251846171,-505.03281762,0.00011094,2]
[352700235,1739251846180,-500.0,0.00011094,2]
[352700236,1739251846189,-500.0,0.00011094,2]
[352700237,1739251846198,-500.0,0.00011094,2]
[352700238,1739251846207,-500.0,0.00011094,2]
[352700239,1739251846216,-500.0,0.00011094,2]
[352700240,1739251846225,-500.0,0.00011094,2]
[352700241,1739251846235,-164.00735238,0.00011094,2]
[352700246,1739251846971,-335.99264762,0.00011094,2]
[352700247,1739251846980,-500.0,0.00011094,2]
[352700248,1739251846989,-412.26844438,0.00011094,2]
[352700249,1739251847025,-87.73155562,0.00011094,2]
[352700250,1739251847037,-500.0,0.00011094,2]
[352700251,1739251847049,-500.0,0.00011094,2]
[352700252,1739251847059,-500.0,0.00011094,2]
[352700253,1739251847068,-500.0,0.00011094,2]
[352700254,1739251847078,-500.0,0.00011094,2]
[352700255,1739251847089,-118.96844438,0.00011094,2]
[352700267,1739252393382,100000.0,8e-05,2]
[352700269,1739252580438,619.65707789,0.0002,120]
[352700270,1739252593562,200.0,0.0002,120]
[352700271,1739252625966,582.055,0.0002,120]
[352700272,1739252766222,-577.4965,8.256e-05,2]
[352700273,1739252794840,-150.0,8.325e-05,2]
[352700274,1739252810499,-150.0,8.503e-05,2]
[352700275,1739252810528,-200.0,8.533e-05,2]
[352700276,1739252810554,-392.16,8.533e-05,2]
[352700277,1739252810583,-945.7743,8.699e-05,2]
[352700278,1739252872792,661.9343945,0.000136,30]
[352700279,1739252872822,338.0656055,0.000136,30]
[352700280,1739252879302,1000.0,0.00013,25]
[352700284,1739252917263,886.81,8.219e-05,2]
[352700294,1739253032349,-300.0,8.835e-05,2]
[352700296,1739253032359,-2152.2476,8.836e-05,2]
[352700297,1739253032368,-3421.5054,8.836e-05,2]
[352700298,1739253032378,-1283.38246805,8.836e-05,2]
[352700299,1739253032424,-1708.709968,8.836e-05,2]
[352700300,1739253032577,-473.38826395,8.836e-05,2]
[352700301,1739253032588,-150.0,8.836e-05,2]
[352700302,1739253032599,-460.37667537,8.836e-05,2]
[352700303,1739253032609,-2500.0,8.851e-05,2]
[352700304,1739253032619,-4286.05034985,8.972e-05,2]
[352700305,1739253032629,-38460.69192882,8.973e-05,2]
[352700306,1739253032653,-305.94287554,8.973e-05,2]
[352700307,1739253032665,-1005.2,8.973e-05,2]
[352700308,1739253032677,-1568.00595115,8.973e-05,2]
[352700309,1739253032908,-7927.05444449,8.973e-05,2]
[352700310,1739253032918,-323.35502939,8.973e-05,2]
[352700311,1739253032930,-139.30887061,8.973e-05,2]
[352700312,1739253032940,-200.0,9.654e-05,2]
[352700313,1739253032949,-420.0,9.718e-05,2]
[352700314,1739253032959,-15.59825385,9.719e-05,2]
[352700315,1739253032972,-134.40174615,9.719e-05,2]
[352700316,1739253032982,-150.0,9.719e-05,2]
[352700317,1739253032992,-619.01,9.796e-05,2]
[352700318,1739253033004,-500.0,9.83e-05,2]
[352700319,1739253033015,-6483.17868704,0.0001,2]
[352700320,1739253033035,-1341.93057131,0.0001,2]
[352700325,1739253038222,-305.2994,8.836e-05,2]
[352700327,1739253038232,-1222.89002139,0.0001,2]
[352700333,1739253038522,-9848.95735806,0.0001,2]
[352700334,1739253038533,-4907.93253681,0.0001,2]
[352700335,1739253038614,-66675.16119939,0.0001,2]
[352700389,1739253040388,-9519.949626,0.0001,2]
[352700390,1739253040397,-1857.6,0.0001,2]
[352700391,1739253040406,-614.54,0.00010018,2]
[352700392,1739253040415,-27865.47982335,0.00010018,2]
[352700393,1739253040433,-488.76090693,0.00010018,2]
[352700394,1739253040537,-489.9573665,0.00010018,2]
[352700395,1739253040569,-1155.79190322,0.00010018,2]
[352700396,1739253040580,-29999.99,0.00010018,2]
[352700397,1739253040589,-13890.0,0.00010124,2]
[352700398,1739253040599,-275.52,0.00010137,2]
[352700399,1739253040608,-1000.0,0.00010248,2]
[352700400,1739253040618,-170.86,0.00010249,2]
[352700401,1739253040627,-780.31,0.00010411,2]
[352700402,1739253040637,-775.33,0.00010411,2]
[352700403,1739253040646,-775.33,0.00010411,2]
[352700404,1739253040656,-775.33,0.00010411,2]
[352700405,1739253040665,-886.81,0.00010467,2]
[352700406,1739253040675,-850.19,0.00010548,2]
[352700407,1739253040685,-300.0,0.00010548,2]
[352700408,1739253040694,-587.0,0.0001069,2]
[352700409,1739253040703,-200.0,0.000107,3]
[352700410,1739253040713,-150.0,0.00010795,2]
[352700411,1739253040722,-150.0,0.00010795,2]
[352700412,1739253040731,-150.0,0.00010795,2]
[352700413,1739253040741,-150.0,0.00010795,2]
[352700414,1739253040750,-150.0,0.00010795,2]
[352700415,1739253040760,-500.0,0.000108,3]
[352700416,1739253040769,-13457.89592206,0.00010837,2]
[352700417,1739253040779,-13457.89592206,0.00010875,2]
[352700418,1739253040788,-13457.89592206,0.00010885,2]
[352700419,1739253040797,-2063.42025847,0.00010889,2]
[352700420,1739253040810,-5469.56333286,0.00010889,2]
[352700421,1739253040834,-4540.28453403,0.00010889,2]
[352700422,1739253040852,-775.35077225,0.00010889,2]
[352700423,1739253040864,-609.27702445,0.00010889,2]
[352700424,1739253040874,-700.0,0.000109,3]
[352700425,1739253040884,-166.64593758,0.000109,2]
[352700436,1739253043442,-152.16,0.000105,2]
[352700437,1739253043452,-105.98626933,0.000109,2]
[352700438,1739253043461,-150.0,0.000109,2]
[352700439,1739253043474,-500.0,0.00010958,2]
[352700441,1739253043484,-500.0,0.00010958,2]
[352700442,1739253043493,-500.0,0.00010958,2]
[352700443,1739253043503,-500.0,0.00010958,2]
[352700444,1739253043513,-500.0,0.00010958,2]
[352700445,1739253043524,-541.88,0.00010958,2]
[352700446,1739253043535,-529.42,0.00010958,2]
[352700447,1739253043547,-500.0,0.00010958,2]
[352700448,1739253043557,-500.0,0.00010958,2]
[352700449,1739253043566,-502.61703551,0.00010958,2]
[352700450,1739253043577,-543.91,0.00010958,2]
[352700451,1739253043586,-500.0,0.00010958,2]
[352700452,1739253043596,-381.03155562,0.00010958,2]
[352700453,1739253043606,-200.81417576,0.00010958,2]
[352700454,1739253043615,-500.0,0.00010958,2]
[352700455,1739253043626,-609.57871193,0.00010958,2]
[352700456,1739253043636,-500.0,0.00010958,2]
[352700457,1739253043646,-500.0,0.00010958,2]
[352700458,1739253043655,-500.0,0.00010958,2]
[352700459,1739253043664,-500.0,0.00010958,2]
[352700460,1739253043674,-500.0,0.00010958,2]
[352700461,1739253043683,-504.95201542,0.00010958,2]
[352700462,1739253043694,-500.0,0.00010958,2]
[352700463,1739253043703,-500.0,0.00010958,2]
[352700464,1739253043713,-500.0,0.00010958,2]
[352700465,1739253043722,-500.0,0.00010958,2]
[352700466,1739253043732,-501.53299969,0.00010958,2]
[352700467,1739253043742,-500.0,0.00010958,2]
[352700468,1739253043752,-500.0,0.00010958,2]
[352700469,1739253043761,-500.0,0.00010958,2]
[352700470,1739253043771,-500.0,0.00010958,2]
[352700471,1739253043780,-500.0,0.00010958,2]
[352700472,1739253043790,-500.0,0.00010958,2]
[352700473,1739253043799,-500.0,0.00010958,2]
[352700474,1739253043808,-505.98713846,0.00010958,2]
[352700475,1739253043817,-500.0,0.00010958,2]
[352700476,1739253043827,-251.06707228,0.00010958,2]
[352700477,1739253043837,-500.0,0.00010958,2]
[352700479,1739253043847,-500.0,0.00010958,2]
[352700481,1739253043857,-500.0,0.00010958,2]
[352700482,1739253043866,-500.0,0.00010958,2]
[352700483,1739253043876,-500.0,0.00010958,2]
[352700484,1739253043886,-500.0,0.00010958,2]
[352700485,1739253043895,-500.0,0.00010958,2]
[352700486,1739253043905,-500.0,0.00010958,2]
[352700487,1739253043915,-500.0,0.00010958,2]
[352700488,1739253043925,-500.0,0.00010958,2]
[352700489,1739253043935,-500.0,0.00010958,2]
[352700490,1739253043945,-500.0,0.00010958,2]
[352700491,1739253043955,-500.0,0.00010958,2]
[352700492,1739253043965,-508.83586017,0.00010958,2]
[352700493,1739253043975,-500.0,0.00010958,2]
[352700494,1739253043985,-330.12226495,0.00010958,2]
[352700496,1739253043995,-500.0,0.00010958,2]
[352700497,1739253044005,-500.0,0.00010958,2]
[352700498,1739253044015,-501.4993588,0.00010958,2]
[352700500,1739253044024,-991.15,0.00010958,2]
[352700502,1739253044034,-500.0,0.00010958,2]
[352700504,1739253044044,-500.0,0.00010958,2]
[352700505,1739253044053,-504.92770379,0.00010958,2]
[352700506,1739253044063,-501.64282992,0.00010958,2]
[352700507,1739253044073,-500.0,0.00010958,2]
[352700508,1739253044083,-500.0,0.00010958,2]
[352700509,1739253044093,-690.16,0.00010958,2]
[352700510,1739253044103,-500.0,0.00010958,2]
[352700511,1739253044112,-500.0,0.00010958,2]
[352700512,1739253044122,-500.0,0.00010958,2]
[352700513,1739253044132,-500.0,0.00010958,2]
[352700514,1739253044141,-503.29398652,0.00010958,2]
[352700515,1739253044152,-500.0,0.00010958,2]
[352700517,1739253044162,-500.0,0.00010958,2]
[352700518,1739253044171,-500.0,0.00010958,2]
[352700519,1739253044181,-549.78,0.00010958,2]
[352700520,1739253044190,-500.0,0.00010958,2]
[352700522,1739253044200,-950.58,0.00010958,2]
[352700524,1739253044209,-500.0,0.00010958,2]
[352700526,1739253044218,-500.0,0.00010958,2]
[352700528,1739253044227,-500.0,0.00010958,2]
[352700530,1739253044237,-413.81421284,0.00010958,2]
[352700532,1739253044247,-500.0,0.00010958,2]
[352700533,1739253044256,-744.09,0.00010958,2]
[352700534,1739253044266,-500.0,0.00010958,2]
[352700535,1739253044276,-500.0,0.00010958,2]
[352700536,1739253044286,-1121.35,0.00010958,2]
[352700537,1739253044295,-500.0,0.00010958,2]
[352700538,1739253044304,-500.0,0.00010958,2]
[352700539,1739253044314,-500.0,0.00010958,2]
[352700540,1739253044323,-502.96919028,0.00010958,2]
[352700541,1739253044334,-500.0,0.00010958,2]
[352700542,1739253044343,-604.2,0.00010958,2]
[352700543,1739253044353,-500.0,0.00010958,2]
[352700544,1739253044362,-500.0,0.00010958,2]
[352700545,1739253044372,-947.47,0.00010958,2]
[352700546,1739253044382,-502.27817404,0.00010958,2]
[352700547,1739253044391,-607.7,0.00010958,2]
[352700548,1739253044402,-500.0,0.00010958,2]
[352700549,1739253044411,-426.58108712,0.00010958,2]
[352700550,1739253044420,-277.99166578,0.00010958,2]
[352700551,1739253044469,-222.00833422,0.00010958,2]
[352700552,1739253044483,-974.36,0.00010958,2]
[352700553,1739253044493,-500.0,0.00010958,2]
[352700554,1739253044502,-500.0,0.00010958,2]
[352700555,1739253044512,-502.91872282,0.00010958,2]
[352700556,1739253044522,-500.0,0.00010958,2]
[352700557,1739253044530,-500.0,0.00010958,2]
[352700558,1739253044540,-509.66161508,0.00010958,2]
[352700559,1739253044551,-1116.95,0.00010958,2]
[352700560,1739253044561,-500.0,0.00010958,2]
[352700561,1739253044571,-500.0,0.00010958,7]
[352700562,1739253044582,-500.0,0.00010958,2]
[352700563,1739253044592,-500.0,0.00010958,2]
[352700564,1739253044602,-501.61849367,0.00010958,2]
[352700565,1739253044611,-500.0,0.00010958,2]
[352700566,1739253044621,-500.0,0.00010958,2]
[352700567,1739253044630,-500.0,0.00010958,2]
[352700568,1739253044639,-192.05608766,0.00010958,2]
[352700569,1739253044648,-500.0,0.00010958,2]
[352700570,1739253044658,-500.0,0.00010958,2]
[352700571,1739253044668,-500.0,0.00010958,2]
[352700572,1739253044677,-500.0,0.00010958,2]
[352700573,1739253044686,-500.0,0.00010958,2]
[352700574,1739253044696,-500.0,0.00010958,2]
[352700575,1739253044705,-421.72808189,0.00010958,2]
[352700576,1739253044714,-500.0,0.00010958,2]
[352700577,1739253044723,-500.0,0.00010958,2]
[352700578,1739253044733,-500.0,0.00010958,2]
[352700579,1739253044743,-1171.54,0.00010958,2]
[352700580,1739253044753,-509.54096066,0.00010958,2]
[352700581,1739253044762,-500.0,0.00010958,2]
[352700582,1739253044772,-500.0,0.00010958,2]
[352700583,1739253044781,-500.0,0.00010958,2]
[352700584,1739253044791,-500.0,0.00010958,2]
[352700585,1739253044800,-500.0,0.00010958,2]
[352700586,1739253044809,-500.0,0.00010958,2]
[352700587,1739253044819,-500.0,0.00010958,2]
[352700588,1739253044829,-836.83,0.00010958,2]
[352700589,1739253044839,-748.61,0.00010958,2]
[352700590,1739253044848,-500.0,0.00010958,2]
[352700591,1739253044858,-501.46116718,0.00010958,2]
[352700592,1739253044867,-500.0,0.00010958,2]
[352700593,1739253044877,-500.0,0.00010958,2]
[352700594,1739253044886,-500.0,0.00010958,2]
[352700595,1739253044896,-500.0,0.00010958,2]
[352700596,1739253044905,-500.0,0.00010958,2]
[352700597,1739253044914,-500.0,0.00010958,2]
[352700598,1739253044923,-500.0,0.00010958,2]
[352700599,1739253044932,-500.0,0.00010958,2]
[352700600,1739253044941,-500.0,0.00010958,2]
[352700601,1739253044950,-505.89387697,0.00010958,2]
[352700602,1739253044960,-1036.7,0.00010958,2]
[352700603,1739253044969,-876.49,0.00010958,2]
[352700604,1739253044979,-500.0,0.00010958,2]
[352700605,1739253044989,-500.0,0.00010958,2]
[352700606,1739253044998,-500.0,0.00010958,2]
[352700607,1739253045008,-950.09,0.00010958,2]
[352700608,1739253045018,-500.0,0.00010958,2]
[352700609,1739253045027,-500.0,0.00010958,2]
[352700610,1739253045037,-300.0,0.00010958,2]
[352700611,1739253045046,-346.01977543,0.00010958,2]
[352700612,1739253045056,-500.0,0.00010958,2]
[352700613,1739253045065,-252.77961722,0.00010958,2]
[352700614,1739253045074,-748.981467,0.00010958,2]
[352700615,1739253045085,-482.17418995,0.00010958,2]
[352700616,1739253045094,-500.0,0.00010958,2]
[352700617,1739253045103,-500.0,0.00010958,2]
[352700618,1739253045112,-500.0,0.00010958,2]
[352700619,1739253045121,-500.0,0.00010958,2]
[352700620,1739253045130,-512.85118256,0.00010958,2]
[352700621,1739253045140,-738.97,0.00010958,2]
[352700622,1739253045150,-913.61,0.00010958,2]
[352700623,1739253045159,-810.544459,0.00010958,2]
[352700624,1739253045168,-500.0,0.00010958,2]
[352700625,1739253045178,-500.0,0.00010958,2]
[352700626,1739253045187,-500.0,0.00010958,2]
[352700627,1739253045196,-500.0,0.00010958,2]
[352700628,1739253045205,-500.0,0.00010958,2]
[352700629,1739253045215,-516.4300867,0.00010958,2]
[352700630,1739253045224,-500.0,0.00010958,2]
[352700631,1739253045235,-500.0,0.00010958,2]
[352700632,1739253045244,-581.01,0.00010958,2]
[352700633,1739253045254,-500.0,0.00010958,2]
[352700634,1739253045263,-534.30373843,0.00010958,2]
[352700635,1739253045272,-500.0,0.00010958,2]
[352700636,1739253045282,-500.0,0.00010958,2]
[352700637,1739253045292,-500.0,0.00010958,2]
[352700638,1739253045301,-571.66368905,0.00010958,2]
[352700639,1739253045310,-500.0,0.00010958,2]
[352700640,1739253045319,-667.9,0.00010958,2]
[352700641,1739253045330,-500.0,0.00010958,2]
[352700642,1739253045339,-500.0,0.00010958,2]
[352700643,1739253045348,-500.0,0.00010958,2]
[352700644,1739253045358,-500.0,0.00010958,2]
[352700645,1739253045367,-500.0,0.00010958,2]
[352700646,1739253045376,-500.0,0.00010958,2]
[352700647,1739253045385,-500.0,0.00010958,2]
[352700648,1739253045394,-500.0,0.00010958,2]
[352700649,1739253045403,-500.0,0.00010958,2]
[352700650,1739253045413,-500.0,0.00010958,2]
[352700651,1739253045422,-716.85,0.00010958,2]
[352700652,1739253045431,-500.0,0.00010958,2]
[352700653,1739253045440,-500.0,0.00010958,2]
[352700654,1739253045449,-500.0,0.00010958,2]
[352700655,1739253045458,-500.0,0.00010958,2]
[352700656,1739253045469,-500.0,0.00010958,2]
[352700657,1739253045479,-500.0,0.00010958,2]
[352700658,1739253045488,-500.0,0.00010958,2]
[352700659,1739253045498,-1063.21,0.00010958,2]
[352700660,1739253045507,-500.0,0.00010958,2]
[352700661,1739253045517,-500.0,0.00010958,2]
[352700662,1739253045526,-500.0,0.00010958,2]
[352700663,1739253045536,-500.0,0.00010958,2]
[352700664,1739253045546,-500.0,0.00010958,2]
[352700665,1739253045555,-500.0,0.00010958,2]
[352700666,1739253045565,-500.0,0.00010958,2]
[352700667,1739253045574,-500.0,0.00010958,2]
[352700668,1739253045585,-500.0,0.00010958,2]
[352700669,1739253045595,-500.0,0.00010958,2]
[352700670,1739253045604,-500.0,0.00010958,2]
[352700671,1739253045613,-1007.29,0.00010958,2]
[352700672,1739253045623,-500.0,0.00010958,2]
[352700673,1739253045632,-500.0,0.00010958,2]
[352700674,1739253045642,-566.13,0.00010958,2]
[352700675,1739253045652,-500.0,0.00010958,2]
[352700676,1739253045665,-500.0,0.00010958,2]
[352700677,1739253045676,-500.0,0.00010958,2]
[352700678,1739253045688,-500.0,0.00010958,2]
[352700679,1739253045700,-500.0,0.00010958,2]
[352700680,1739253045712,-653.15,0.00010958,2]
[352700681,1739253045723,-500.0,0.00010958,2]
[352700682,1739253045734,-500.0,0.00010958,2]
[352700683,1739253045745,-524.37178206,0.00010958,2]
[352700684,1739253045755,-500.0,0.00010958,2]
[352700685,1739253045767,-872.37,0.00010958,2]
[352700686,1739253045777,-500.0,0.00010958,2]
[352700687,1739253045789,-641.11,0.00010958,2]
[352700688,1739253045800,-500.0,0.00010958,2]
[352700689,1739253045811,-500.0,0.00010958,2]
[352700690,1739253045824,-500.0,0.00010958,2]
[352700691,1739253045837,-500.0,0.00010958,2]
[352700692,1739253045849,-1186.17,0.00010958,2]
[352700693,1739253045860,-500.0,0.00010958,2]
[352700694,1739253045872,-1131.0,0.00010958,2]
[352700695,1739253045883,-500.0,0.00010958,2]
[352700696,1739253045894,-500.51657619,0.00010958,2]
[352700697,1739253045905,-725.8,0.00010958,2]
[352700698,1739253045916,-500.0,0.00010958,2]
[352700699,1739253045926,-390.74946055,0.00010958,2]
[352700700,1739253045936,-506.51360275,0.00010958,2]
[352700701,1739253045948,-500.0,0.00010958,2]
[352700702,1739253045959,-500.0,0.00010958,2]
[352700703,1739253045971,-718.72,0.00010958,2]
[352700704,1739253045982,-990.65,0.00010958,2]
[352700705,1739253045993,-764.75,0.00010958,2]
[352700706,1739253046004,-936.48,0.00010958,2]
[352700707,1739253046016,-500.0,0.00010958,2]
[352700708,1739253046027,-500.0,0.00010958,2]
[352700709,1739253046039,-500.0,0.00010958,2]
[352700710,1739253046051,-500.0,0.00010958,2]
[352700711,1739253046062,-500.0,0.00010958,2]
[352700712,1739253046074,-500.0,0.00010958,2]
[352700713,1739253046087,-500.0,0.00010958,2]
[352700714,1739253046098,-500.0,0.00010958,2]
[352700715,1739253046112,-500.0,0.00010958,2]
[352700716,1739253046123,-500.0,0.00010958,2]
[352700717,1739253046134,-500.0,0.00010958,2]
[352700718,1739253046145,-764.01,0.00010958,2]
[352700719,1739253046157,-864.85,0.00010958,2]
[352700720,1739253046168,-660.28,0.00010958,2]
[352700721,1739253046180,-2614.54,0.00010958,2]
[352700722,1739253046191,-1703.52,0.00010958,2]
[352700723,1739253046202,-911.46,0.00010958,2]
[352700724,1739253046213,-2135.87,0.00010958,2]
[352700725,1739253046225,-571.48,0.00010958,2]
[352700726,1739253046238,-500.0,0.00010958,2]
[352700727,1739253046250,-1197.92,0.00010958,2]
[352700728,1739253046261,-1679.75,0.00010958,2]
[352700730,1739253046271,-1428.52,0.00010958,2]
[352700731,1739253046282,-804.61,0.00010958,2]
[352700732,1739253046292,-720.26,0.00010958,2]
[352700733,1739253046302,-1990.02,0.00010958,2]
[352700734,1739253046312,-1750.72,0.00010958,2]
[352700735,1739253046322,-934.59,0.00010958,2]
[352700736,1739253046334,-925.91,0.00010958,2]
[352700737,1739253046344,-2138.14,0.00010958,2]
[352700738,1739253046356,-500.0,0.00010958,2]
[352700739,1739253046369,-1000.0,0.00010958,2]
[352700740,1739253046381,-500.0,0.00010958,2]
[352700741,1739253046392,-500.0,0.00010958,2]
[352700742,1739253046402,-1286.24,0.00010958,2]
[352700743,1739253046411,-500.0,0.00010958,2]
[352700744,1739253046422,-532.97,0.00010958,2]
[352700745,1739253046432,-890.89,0.00010958,2]
[352700746,1739253046443,-1007.9,0.00010958,2]
[352700747,1739253046456,-500.0,0.00010958,2]
[352700748,1739253046470,-500.0,0.00010958,2]
[352700749,1739253046483,-572.6,0.00010958,2]
[352700750,1739253046495,-1707.33,0.00010958,2]
[352700751,1739253046506,-2099.05,0.00010958,2]
[352700752,1739253046518,-1739.67,0.00010958,2]
[352700753,1739253046528,-1671.9,0.00010958,2]
[352700754,1739253046538,-500.0,0.00010958,2]
[352700755,1739253046549,-2002.42,0.00010958,2]
[352700756,1739253046560,-500.0,0.00010958,2]
[352700757,1739253046571,-2083.07,0.00010958,2]
[352700758,1739253046583,-500.0,0.00010958,2]
[352700759,1739253046593,-500.0,0.00010958,2]
[352700760,1739253046604,-2227.96,0.00010958,2]
[352700761,1739253046615,-1259.35,0.00010958,2]
[352700762,1739253046626,-500.0,0.00010958,2]
[352700763,1739253046637,-1322.61,0.00010958,2]
[352700764,1739253046649,-3613.83,0.00010958,2]
[352700765,1739253046660,-500.0,0.00010958,2]
[352700766,1739253046671,-2126.88,0.00010958,2]
[352700767,1739253046682,-690.16,0.00010958,2]
[352700768,1739253046693,-1128.86,0.00010958,2]
[352700769,1739253046704,-567.04,0.00010958,2]
[352700770,1739253046718,-1474.48,0.00010958,2]
[352700771,1739253046729,-500.0,0.00010958,2]
[352700772,1739253046740,-2597.31,0.00010958,2]
[352700773,1739253046751,-1307.4,0.00010958,2]
[352700774,1739253046762,-918.63,0.00010958,2]
[352700775,1739253046773,-2557.17,0.00010958,2]
[352700776,1739253046784,-500.0,0.00010958,2]
[352700777,1739253046795,-1483.2,0.00010958,2]
[352700778,1739253046807,-1605.54,0.00010958,2]
[352700779,1739253046819,-1057.86,0.00010958,2]
[352700780,1739253046829,-500.0,0.00010958,2]
[352700781,1739253046840,-1264.63,0.00010958,2]
[352700782,1739253046851,-500.0,0.00010958,2]
[352700783,1739253046861,-1021.04,0.00010958,2]
[352700784,1739253046872,-2790.79,0.00010958,2]
[352700785,1739253046882,-500.0,0.00010958,2]
[352700786,1739253046893,-5857.04,0.00010958,2]
[352700787,1739253046903,-1792.48,0.00010958,2]